[Event "FIDE Open Sachove Univerzity QCC"]
[Site "Ceske Budejovice"]
[Date "2020.07.09"]
[Round "9.11"]
[White "Day, Sophia Olivia"]
[Black "Postl, Frantisek"]
[Result "1-0"]
[ECO "B15"]
[WhiteElo "1099"]
[BlackElo "1188"]
[Annotator "NA"]
[PlyCount "67"]
[EventDate "2020.07.01"]
[EventType "swiss"]
[EventCountry "CZE"]
[SourceTitle "playchess.com"]
[Source "ChessBase"]
[SourceQuality "1"]
[TimeControl "40/5400+30:1800+30"]

1. e4 {[%emt 0:00:00]} c6 {[%emt 0:00:00]} 2. d4 {[%emt 0:00:04]} d5 {[%emt 0:00:05]} 3. Nc3 {[%emt 0:00:30]} Nf6 {[%emt 0:00:30]} 4. Bd3 {[%emt 0:00:30]} e6 {[%emt 0:00:30]} 5. exd5 {[%emt 0:00:22]} exd5 {[%emt 0:00:00]} 6. Be3 {[%emt 0:00:48]} Bg4 {[%emt 0:00:47]} 7. f3 {[%emt 0:01:03]} Be6 {[%emt 0:00:44]} 8. Nge2 {[%emt 0:00:18]} Bd6 {[%emt 0:00:35]} 9. O-O {[%emt 0:01:21]} Nbd7 {[%emt 0:02:14]} 10. f4 {[%emt 0:00:34]} Nf8 {[%emt 0:02:18]} 11. f5 {[%emt 0:00:43]} Bd7 {[%emt 0:00:15]} 12. Bf4 {[%emt 0:03:18]} Qc7 {[%emt 0:00:50]} 13. Qe1 {[%emt 0:00:54]} O-O-O {[%emt 0:00:22]} 14. Bxd6 {[%emt 0:00:35]} Qxd6 {[%emt 0:00:16]} 15. a4 {[%emt 0:00:37]} g6 {[%emt 0:00:26]} 16. a5 {[%emt 0:00:59]} gxf5 {[%emt 0:00:19]} 17. Bxf5 {[%emt 0:00:19]} Bxf5 {[%emt 0:00:11]} 18. Rxf5 {[%emt 0:00:11]} Ng4 {[%emt 0:00:23]} 19. Nf4 {[%emt 0:01:43]} Ng6 {[%emt 0:01:01]} 20. Qg3 {[%emt 0:07:04]} Nxf4 {[%emt 0:00:27]} 21. Qxg4 {[%emt 0:01:02]} Ne6 {[%emt 0:00:34]} 22. Rxf7 {[%emt 0:00:54]} Rdg8 {[%emt 0:00:37]} 23. Qf5 {[%emt 0:02:00]} Rg5 {[%emt 0:00:42]} 24. Qf6 {[%emt 0:01:58]} Rhg8 {[%emt 0:00:28]} 25. Kf1 {[%emt 0:13:19]} Rxg2 {[%emt 0:00:50]} 26. Ne2 {[%emt 0:03:17]} Rxe2 {[%emt 0:03:12]} 27. Kxe2 {[%emt 0:03:35]} Nxd4+ {[%emt 0:00:23]} 28. Qxd4 {[%emt 0:00:36]} Qe6+ {[%emt 0:00:10]} 29. Qe3 {[%emt 0:00:52]} Qxf7 {[%emt 0:00:41]} 30. Rf1 {[%emt 0:01:17]} Rg2+ {[%emt 0:00:34]} 31. Ke1 {[%emt 0:00:22]} Qd7 {[%emt 0:01:02]} 32. Rf8+ {[%emt 0:00:35]} Kc7 {[%emt 0:00:09]} 33. Qf4+ {[%emt 0:00:33]} Qd6 {[%emt 0:00:27]} 34. Rf7+ {[%emt 0:00:38]} 1-0

[Event "FIDE Open Sachove Univerzity QCC"]
[Site "Ceske Budejovice"]
[Date "2020.07.09"]
[Round "9.12"]
[White "Roubal, Matyas"]
[Black "Josko, Jiri"]
[Result "1-0"]
[ECO "B01"]
[WhiteElo "1443"]
[BlackElo "1649"]
[Annotator "NA"]
[PlyCount "83"]
[EventDate "2020.07.01"]
[EventType "swiss"]
[EventCountry "CZE"]
[SourceTitle "playchess.com"]
[Source "ChessBase"]
[SourceQuality "1"]
[TimeControl "40/5400+30:1800+30"]

1. e4 {[%emt 0:00:00]} d5 {[%emt 0:02:03]} 2. exd5 {[%emt 0:00:00]} Nf6 {[%emt 0:00:27]} 3. d4 {[%emt 0:00:00]} Nxd5 {[%emt 0:00:06]} 4. Be2 {[%emt 0:00:00]} g6 {[%emt 0:01:13]} 5. c4 {[%emt 0:00:31]} Nf6 {[%emt 0:00:05]} 6. Nc3 {[%emt 0:00:13]} Bg7 {[%emt 0:00:13]} 7. Be3 {[%emt 0:01:02]} O-O {[%emt 0:00:59]} 8. Nf3 {[%emt 0:00:13]} c6 {[%emt 0:01:11]} 9. O-O {[%emt 0:00:35]} Re8 {[%emt 0:01:09]} 10. Qd2 {[%emt 0:02:27]} Bg4 {[%emt 0:04:26]} 11. h3 {[%emt 0:01:56]} Bxf3 {[%emt 0:01:22]} 12. Bxf3 {[%emt 0:00:25]} Nbd7 {[%emt 0:01:38]} 13. Rad1 {[%emt 0:00:56]} e5 {[%emt 0:00:39]} 14. d5 {[%emt 0:05:43]} e4 {[%emt 0:07:31]} 15. Be2 {[%emt 0:00:47]} cxd5 {[%emt 0:02:56]} 16. Nxd5 {[%emt 0:00:54]} Nxd5 {[%emt 0:01:44]} 17. Qxd5 {[%emt 0:00:24]} Nb6 {[%emt 0:02:16]} 18. Qxb7 {[%emt 0:01:48]} Qe7 {[%emt 0:05:35]} 19. Qxe7 {[%emt 0:01:00]} Rxe7 {[%emt 0:02:17]} 20. b3 {[%emt 0:00:58]} Nd7 {[%emt 0:07:27]} 21. Rd2 {[%emt 0:03:03]} f5 {[%emt 0:03:49]} 22. Rfd1 {[%emt 0:01:27]} Ne5 {[%emt 0:02:57]} 23. Rd8+ {[%emt 0:02:42]} Rxd8 {[%emt 0:00:13]} 24. Rxd8+ {[%emt 0:00:04]} Kf7 {[%emt 0:00:52]} 25. Ra8 {[%emt 0:00:42]} Rd7 {[%emt 0:06:20]} 26. Rxa7 {[%emt 0:01:16]} Rxa7 {[%emt 0:01:11]} 27. Bxa7 {[%emt 0:00:26]} Nd3 {[%emt 0:00:08]} 28. Bxd3 {[%emt 0:00:10]} exd3 {[%emt 0:00:27]} 29. Kf1 {[%emt 0:02:41]} Bc3 {[%emt 0:09:58]} 30. f4 {[%emt 0:02:46]} Ke6 {[%emt 0:00:55]} 31. Kf2 {[%emt 0:05:25]} g5 {[%emt 0:06:06]} 32. fxg5 {[%emt 0:03:13]} f4 {[%emt 0:02:01]} 33. Kf3 {[%emt 0:03:05]} Be1 {[%emt 0:03:38]} 34. Bb8 {[%emt 0:00:30]} Bg3 {[%emt 0:00:30]} 35. Ba7 {[%emt 0:03:45]} Ke5 {[%emt 0:09:40]} 36. Bc5 {[%emt 0:04:09]} Be1 {[%emt 0:02:58]} 37. a4 {[%emt 0:02:23]} Bh4 {[%emt 0:00:19]} 38. a5 {[%emt 0:00:56]} Bxg5 {[%emt 0:00:26]} 39. a6 {[%emt 0:00:14]} d2 {[%emt 0:02:40]} 40. Ke2 {[%emt 0:00:03]} Ke4 {[%emt 0:00:38]} 41. a7 {[%emt 0:30:08]} f3+ {[%emt 0:30:46]} 42. gxf3+ {[%emt 0:00:03]} 1-0

[Event "FIDE Open Sachove Univerzity QCC"]
[Site "Ceske Budejovice"]
[Date "2020.07.09"]
[Round "9.13"]
[White "Garabik, Marek"]
[Black "Pokora, Lubomir"]
[Result "1-0"]
[ECO "C42"]
[WhiteElo "1363"]
[BlackElo "1800"]
[Annotator "NA RC"]
[PlyCount "93"]
[EventDate "2020.07.01"]
[EventType "swiss"]
[EventCountry "CZE"]
[SourceTitle "playchess.com"]
[Source "ChessBase"]
[SourceQuality "1"]
[TimeControl "40/5400+30:1800+30"]

1. e4 {[%emt 0:00:00]} e5 {[%emt 0:01:40]} 2. Nf3 {[%emt 0:00:00]} Nf6 {[%emt 0:00:10]} 3. Nxe5 {[%emt 0:00:00]} d6 {[%emt 0:00:12]} 4. Nf3 {[%emt 0:00:24]} Nxe4 {[%emt 0:00:09]} 5. Nc3 {[%emt 0:00:31]} Nxc3 {[%emt 0:00:15]} 6. dxc3 {[%emt 0:00:09]} Be7 {[%emt 0:00:20]} 7. Bd3 {[%emt 0:01:03]} Nc6 {[%emt 0:00:51]} 8. Be3 {[%emt 0:01:16] C42: Petroff Defence: 3 Nxe5 and unusual White 3rd moves.} Be6 {[%emt 0:01:35] [#]} 9. Bb5 $146 {[%emt 0:01:50]} ({Predecessor:} 9. Qe2 Qd7 10. O-O-O O-O 11. h4 Bf5 12. Nd4 Nxd4 13. Bxd4 Rfe8 14. Qf3 Bxd3 15. Rxd3 b5 {0-1 (43) Alekseenko,K (2637)-Duda,J (2738) chess.com INT 2019}) 9... a6 {[%emt 0:03:37]} 10. Bxc6+ {[%emt 0:00:54]} bxc6 {[%emt 0:00:16]} 11. Nd4 {[%emt 0:00:46]} Bd7 {[%emt 0:03:20]} 12. Qf3 {[%emt 0:01:03]} d5 {[%emt 0:06:19]} 13. Nb3 {[%emt 0:06:09]} O-O {[%emt 0:04:15]} 14. O-O {[%emt 0:00:12]} Qc8 {[%emt 0:02:53]} 15. h3 {[%emt 0:04:52]} Rb8 {[%emt 0:06:10]} 16. Rab1 {[%emt 0:02:39]} Bf5 {[%emt 0:02:56]} 17. Nd4 {[%emt 0:06:19]} Be4 {[%emt 0:02:03]} 18. Nxc6 {[%emt 0:07:43]} Bf6 {[%emt 0:02:15]} 19. Qe2 {[%emt 0:02:02]} Ra8 {[%emt 0:00:24]} 20. f3 {[%emt 0:02:15]} Bg6 {[%emt 0:03:00]} 21. Qf2 {[%emt 0:03:05]} Re8 {[%emt 0:08:22]} 22. Rfe1 {[%emt 0:06:01]} Qd7 {[%emt 0:03:50]} 23. Nd4 {[%emt 0:00:57]} Qd8 {[%emt 0:03:15]} 24. Nb3 {[%emt 0:01:28]} h5 {[%emt 0:12:30]} 25. Bd4 {[%emt 0:05:27]} Rxe1+ {[%emt 0:01:37]} 26. Rxe1 {[%emt 0:03:28]} Bh4 {[%emt 0:03:26]} 27. g3 {[%emt 0:01:29]} Be7 {[%emt 0:01:10]} 28. Qe2 {[%emt 0:02:48]} Bf8 {[%emt 0:04:03]} 29. h4 {[%emt 0:10:41]} Qd7 {[%emt 0:03:02]} 30. Kg2 {[%emt 0:06:34]} Qf5 {[%emt 0:01:03]} 31. Qd3 {[%emt 0:03:03]} Qd7 {[%emt 0:02:06]} 32. Qe2 {[%emt 0:01:39]} c6 {[%emt 0:03:34]} 33. Bc5 {[%emt 0:01:22]} a5 {[%emt 0:03:09]} 34. Bxf8 {[%emt 0:01:41]} Kxf8 {[%emt 0:00:23]} 35. Nc5 {[%emt 0:03:05]} Qd6 {[%emt 0:02:41]} 36. Nd3 {[%emt 0:02:00]} f6 {[%emt 0:00:21]} 37. Nf4 {[%emt 0:02:24]} Bf7 {[%emt 0:00:27]} 38. Qd3 {[%emt 0:02:13]} Kg8 {[%emt 0:01:25]} 39. Kf2 {[%emt 0:05:07]} Qd7 {[%emt 0:00:43]} 40. Re2 {[%emt 0:03:14]} g5 {[%emt 0:00:37]} 41. hxg5 {[%emt 0:31:31]} fxg5 {[%emt 0:31:45]} 42. Ng6 {[%emt 0:01:04]} Qh3 $2 {[%emt 0:05:01]} (42... Re8 $11 {and Black has nothing to worry.} 43. Re5 Kg7) 43. Ne7+ {[%emt 0:00:26]} Kh8 {[%emt 0:02:45]} 44. Qd4+ {[%emt 0:00:23]} Kh7 {[%emt 0:00:21] [#]} 45. Qf6 $1 {[%emt 0:00:24] Double Attack} Qh2+ {[%emt 0:00:00] [#]} 46. Ke1 $1 {[%emt 0:00:00]} Qxg3+ {[%emt 0:00:00] [#]} 47. Kd1 {[%emt 0:00:00]} 1-0

[Event "FIDE Open Sachove Univerzity QCC"]
[Site "Ceske Budejovice"]
[Date "2020.07.10"]
[Round "9.15"]
[White "Matlocha, Lubomir"]
[Black "Strapec, Lukas"]
[Result "1-0"]
[ECO "B00"]
[WhiteElo "1646"]
[BlackElo "1525"]
[Annotator "NA RC"]
[PlyCount "77"]
[EventDate "2020.07.01"]
[EventType "swiss"]
[EventCountry "CZE"]
[TimeControl "40/5400+30:1800+30"]

1. d4 {[%emt 0:00:00]} b6 {[%emt 0:00:01]} 2. e4 {[%emt 0:00:25]} Bb7 {[%emt 0:01:12]} 3. Nc3 {[%emt 0:00:13]} e6 {[%emt 0:01:32]} 4. a3 {[%emt 0:00:13]} Nf6 {[%emt 0:04:25]} 5. Bd3 {[%emt 0:00:47]} Be7 {[%emt 0:01:21]} 6. Nge2 {[%emt 0:00:45]} O-O {[%emt 0:04:33]} 7. O-O {[%emt 0:00:28]} c5 {[%emt 0:02:31]} 8. e5 {[%emt 0:03:17]} Nd5 {[%emt 0:06:27]} 9. Nxd5 {[%emt 0:01:55]} Bxd5 {[%emt 0:01:24]} 10. c4 {[%emt 0:04:02]} Bb7 {[%emt 0:05:10]} 11. Qc2 {[%emt 0:08:42]} h6 {[%emt 0:10:01]} 12. Be3 {[%emt 0:06:53]} cxd4 {[%emt 0:08:39]} 13. Bxd4 {[%emt 0:04:24]} Nc6 {[%emt 0:02:43]} 14. Bc3 {[%emt 0:00:26]} Qc7 {[%emt 0:10:32]} 15. Be4 {[%emt 0:04:56]} Rab8 {[%emt 0:06:33]} 16. f4 {[%emt 0:07:25]} b5 {[%emt 0:09:46]} 17. b4 {[%emt 0:11:20]} bxc4 {[%emt 0:03:38]} 18. Rf3 {[%emt 0:02:13]} f5 {[%emt 0:06:20]} 19. exf6 {[%emt 0:01:41]} Bxf6 {[%emt 0:00:41]} 20. Rg3 {[%emt 0:03:02]} Ne7 {[%emt 0:02:33]} 21. Bxf6 {[%emt 0:17:26]} Rxf6 {[%emt 0:00:07]} 22. Qc3 {[%emt 0:00:25]} Rf7 {[%emt 0:01:36]} 23. Bg6 {[%emt 0:01:57]} Nxg6 {[%emt 0:01:28]} 24. Rxg6 {[%emt 0:00:30]} Rbf8 {[%emt 0:06:06]} 25. Rf1 {[%emt 0:00:59]} Rf6 {[%emt 0:00:41]} 26. Rg4 {[%emt 0:02:43]} e5 {[%emt 0:00:28]} 27. f5 {[%emt 0:05:54]} Rxf5 {[%emt 0:01:13]} 28. Rxf5 {[%emt 0:01:44]} Rxf5 {[%emt 0:00:03]} 29. h3 {[%emt 0:07:03]} d5 {[%emt 0:01:18]} 30. Ng3 {[%emt 0:00:29]} d4 {[%emt 0:00:44]} 31. Qd2 {[%emt 0:00:18]} Rf6 {[%emt 0:00:20]} 32. Nh5 {[%emt 0:00:10]} Rd6 {[%emt 0:01:17]} 33. Qe2 {[%emt 0:01:26]} g5 {[%emt 0:00:27]} 34. Qxe5 {[%emt 0:00:11]} Rc6 {[%emt 0:00:33]} 35. Qe8+ {[%emt 0:00:20]} Kh7 {[%emt 0:00:14]} 36. Rxd4 {[%emt 0:00:09]} Bc8 {[%emt 0:00:35]} 37. Rd8 {[%emt 0:00:38]} Qb6+ {[%emt 0:00:42]} 38. Kh1 {[%emt 0:00:30]} Rg6 {[%emt 0:00:33]} 39. Qh8# {[%emt 0:00:00]} 1-0

[Event "FIDE Open Sachove Univerzity QCC"]
[Site "Ceske Budejovice"]
[Date "2020.07.09"]
[Round "9.16"]
[White "Cipera, Josef"]
[Black "Svadlenka, Michal"]
[Result "1-0"]
[ECO "D00"]
[WhiteElo "1612"]
[BlackElo "1395"]
[Annotator "NA"]
[PlyCount "74"]
[EventDate "2020.07.01"]
[EventType "swiss"]
[EventCountry "CZE"]
[SourceTitle "playchess.com"]
[Source "ChessBase"]
[SourceQuality "1"]
[TimeControl "40/5400+30:1800+30"]

1. d4 {[%emt 0:00:00]} d5 {[%emt 0:00:03]} 2. Bf4 {[%emt 0:00:00]} Nf6 {[%emt 0:00:50]} 3. e3 {[%emt 0:00:00]} Bf5 {[%emt 0:01:09]} 4. Bd3 {[%emt 0:01:12]} Bxd3 {[%emt 0:02:48]} 5. cxd3 {[%emt 0:00:07]} c5 {[%emt 0:02:15]} 6. Nf3 {[%emt 0:03:02]} Nc6 {[%emt 0:01:27]} 7. dxc5 {[%emt 0:01:30]} Qa5+ {[%emt 0:04:29]} 8. Nc3 {[%emt 0:01:33]} Qxc5 {[%emt 0:00:45]} 9. O-O {[%emt 0:00:53]} Qb6 {[%emt 0:05:21]} 10. Na4 {[%emt 0:03:10]} Qd8 {[%emt 0:08:26]} 11. a3 {[%emt 0:00:47]} e6 {[%emt 0:02:10]} 12. Qb3 {[%emt 0:02:32]} b6 {[%emt 0:12:12]} 13. Rac1 {[%emt 0:06:44]} Na5 {[%emt 0:03:27]} 14. Qc2 {[%emt 0:02:19]} Bd6 {[%emt 0:01:05]} 15. b4 {[%emt 0:02:08]} Bxf4 {[%emt 0:03:28]} 16. bxa5 {[%emt 0:01:43]} Bd6 {[%emt 0:06:08]} 17. Qc6+ {[%emt 0:01:53]} Ke7 {[%emt 0:02:19]} 18. axb6 {[%emt 0:01:49]} axb6 {[%emt 0:05:56]} 19. Nxb6 {[%emt 0:02:43]} Rb8 {[%emt 0:02:41]} 20. Na4 {[%emt 0:07:00]} Qd7 {[%emt 0:01:59]} 21. Nd4 {[%emt 0:06:45]} Rhc8 {[%emt 0:04:17]} 22. Qxd7+ {[%emt 0:01:55]} Kxd7 {[%emt 0:01:45]} 23. Rxc8 {[%emt 0:03:33]} Kxc8 {[%emt 0:01:58]} 24. g3 {[%emt 0:06:07]} Bxa3 {[%emt 0:03:49]} 25. Ra1 {[%emt 0:01:31]} Bb2 {[%emt 0:01:42]} 26. Nxb2 {[%emt 0:01:40]} Rxb2 {[%emt 0:00:18]} 27. h3 {[%emt 0:01:20]} Kd7 {[%emt 0:02:26]} 28. Nf3 {[%emt 0:02:12]} Ke7 {[%emt 0:00:55]} 29. Ra7+ {[%emt 0:00:42]} Ke8 {[%emt 0:11:29]} 30. Ne5 {[%emt 0:00:28]} Rd2 {[%emt 0:00:54]} 31. Rxf7 {[%emt 0:00:30]} Rxd3 {[%emt 0:01:16]} 32. Rxg7 {[%emt 0:04:54]} Rd1+ {[%emt 0:01:13]} 33. Kg2 {[%emt 0:00:14]} Ne4 {[%emt 0:00:20]} 34. Rxh7 {[%emt 0:01:36]} Rd2 {[%emt 0:00:25]} 35. Rf7 {[%emt 0:03:13]} d4 {[%emt 0:00:33]} 36. exd4 {[%emt 0:00:41]} Rxd4 {[%emt 0:00:16]} 37. Rf4 {[%emt 0:00:42]} Ke7 {[%emt 0:00:41]} 1-0

[Event "FIDE Open Sachove Univerzity QCC"]
[Site "Ceske Budejovice"]
[Date "2020.07.10"]
[Round "9.17"]
[White "Frnoch, Vojtech"]
[Black "Janouskova, Adela"]
[Result "1/2-1/2"]
[ECO "D02"]
[WhiteElo "1597"]
[BlackElo "1377"]
[Annotator "NA RC"]
[PlyCount "73"]
[EventDate "2020.07.01"]
[EventType "swiss"]
[EventCountry "CZE"]
[TimeControl "40/5400+30:1800+30"]

1. Nf3 {[%emt 0:00:00]} d5 {[%emt 0:00:00]} 2. d4 {[%emt 0:00:00]} e6 {[%emt 0:00:00]} 3. Bf4 {[%emt 0:00:25]} Nf6 {[%emt 0:00:12]} 4. e3 {[%emt 0:00:24]} Be7 {[%emt 0:00:11]} 5. Nbd2 {[%emt 0:00:36]} O-O {[%emt 0:00:16]} 6. Bd3 {[%emt 0:00:39]} Nbd7 {[%emt 0:00:21]} 7. c3 {[%emt 0:01:14]} c5 {[%emt 0:00:38]} 8. Rc1 {[%emt 0:02:46]} b6 {[%emt 0:00:59]} 9. O-O {[%emt 0:03:29]} Bb7 {[%emt 0:00:42]} 10. Ne5 {[%emt 0:01:18]} Nxe5 {[%emt 0:02:14]} 11. Bxe5 {[%emt 0:03:52]} Bd6 {[%emt 0:01:04]} 12. f4 {[%emt 0:00:38]} Rc8 {[%emt 0:03:39]} 13. Qf3 {[%emt 0:04:06]} cxd4 {[%emt 0:03:29]} 14. exd4 {[%emt 0:00:59]} h6 {[%emt 0:01:37]} 15. f5 {[%emt 0:03:41]} Bxe5 {[%emt 0:02:04]} 16. dxe5 {[%emt 0:00:44]} Nd7 {[%emt 0:00:53]} 17. Qf4 {[%emt 0:08:43]} Nc5 {[%emt 0:05:44]} 18. Bc2 {[%emt 0:00:24]} exf5 {[%emt 0:08:09]} 19. Qxf5 {[%emt 0:02:05]} g6 {[%emt 0:00:17]} 20. Qg4 {[%emt 0:04:53]} Qe7 {[%emt 0:01:44]} 21. Nf3 {[%emt 0:03:51]} Ne4 {[%emt 0:07:41]} 22. Qf4 {[%emt 0:12:49]} Kg7 {[%emt 0:02:07]} 23. Nd4 {[%emt 0:00:31]} Qg5 {[%emt 0:01:05]} 24. Qxg5 {[%emt 0:05:03]} Nxg5 {[%emt 0:00:21]} 25. Ba4 {[%emt 0:04:10]} Rfd8 {[%emt 0:04:08]} 26. Rce1 {[%emt 0:00:35]} a6 {[%emt 0:01:51]} 27. Rf6 {[%emt 0:02:21]} b5 {[%emt 0:00:24]} 28. Bb3 {[%emt 0:00:30]} Re8 {[%emt 0:01:32]} 29. Rb6 {[%emt 0:01:33]} Rc7 {[%emt 0:00:45]} 30. e6 {[%emt 0:00:32]} Rce7 {[%emt 0:02:25]} 31. Nc6 {[%emt 0:06:56]} Bxc6 {[%emt 0:01:03]} 32. Rxc6 {[%emt 0:00:07]} Rxe6 {[%emt 0:00:19]} 33. Rexe6 {[%emt 0:00:27]} Rxe6 {[%emt 0:00:09]} 34. Bxd5 {[%emt 0:00:23]} Rxc6 {[%emt 0:03:03]} 35. Bxc6 {[%emt 0:00:11]} Kf6 {[%emt 0:00:25]} 36. a3 {[%emt 0:00:34]} Ne6 {[%emt 0:00:24]} 37. Kf2 {[%emt 0:02:02]} 1/2-1/2

[Event "FIDE Open Sachove Univerzity QCC"]
[Site "Ceske Budejovice"]
[Date "2020.07.09"]
[Round "9.18"]
[White "Chmelik, Benedikt"]
[Black "Zezula, Jakub"]
[Result "1/2-1/2"]
[ECO "B01"]
[WhiteElo "1571"]
[BlackElo "1449"]
[Annotator "NA"]
[PlyCount "95"]
[EventDate "2020.07.01"]
[EventType "swiss"]
[EventCountry "CZE"]
[SourceTitle "playchess.com"]
[Source "ChessBase"]
[SourceQuality "1"]
[TimeControl "40/5400+30:1800+30"]

1. e4 {[%emt 0:00:00]} d5 {[%emt 0:00:00]} 2. exd5 {[%emt 0:00:28]} Qxd5 {[%emt 0:00:00]} 3. Nc3 {[%emt 0:00:23]} Qd6 {[%emt 0:00:00]} 4. d4 {[%emt 0:01:59]} Nf6 {[%emt 0:00:00]} 5. Nf3 {[%emt 0:00:37]} c6 {[%emt 0:00:07]} 6. Bc4 {[%emt 0:01:08]} Bg4 {[%emt 0:00:31]} 7. Be3 {[%emt 0:00:30]} e6 {[%emt 0:00:43]} 8. O-O {[%emt 0:00:46]} Nbd7 {[%emt 0:00:45]} 9. h3 {[%emt 0:01:15]} Bh5 {[%emt 0:00:08]} 10. Be2 {[%emt 0:03:05]} Be7 {[%emt 0:02:25]} 11. Qd2 {[%emt 0:05:53]} O-O {[%emt 0:01:35]} 12. Bf4 {[%emt 0:01:36]} Qb4 {[%emt 0:01:38]} 13. a3 {[%emt 0:00:59]} Qa5 {[%emt 0:02:01]} 14. b4 {[%emt 0:00:33]} Qd8 {[%emt 0:00:42]} 15. Ne5 {[%emt 0:12:36]} Bxe2 {[%emt 0:02:10]} 16. Qxe2 {[%emt 0:00:17]} Nxe5 {[%emt 0:01:11]} 17. Bxe5 {[%emt 0:01:29]} Nd5 {[%emt 0:01:33]} 18. Nxd5 {[%emt 0:00:16]} cxd5 {[%emt 0:02:02]} 19. Rfc1 {[%emt 0:01:26]} Bg5 {[%emt 0:02:12]} 20. Qg4 {[%emt 0:02:41]} Bf6 {[%emt 0:05:22]} 21. c4 {[%emt 0:02:19]} Bxe5 {[%emt 0:03:45]} 22. dxe5 {[%emt 0:00:15]} dxc4 {[%emt 0:02:00]} 23. Rxc4 {[%emt 0:01:07]} Qd5 {[%emt 0:06:41]} 24. Qd4 {[%emt 0:00:06]} Rad8 {[%emt 0:11:58]} 25. Qxd5 {[%emt 0:03:19]} exd5 {[%emt 0:02:00]} 26. Rc7 {[%emt 0:01:06]} d4 {[%emt 0:01:25]} 27. Rxb7 {[%emt 0:00:20]} Rfe8 {[%emt 0:00:36]} 28. f4 {[%emt 0:00:29]} d3 {[%emt 0:00:11]} 29. Rd1 {[%emt 0:02:11]} f6 {[%emt 0:02:24]} 30. Rb5 {[%emt 0:01:11]} d2 {[%emt 0:03:26]} 31. Kf2 {[%emt 0:00:41]} fxe5 {[%emt 0:01:08]} 32. Rxe5 {[%emt 0:00:11]} Rxe5 {[%emt 0:00:04]} 33. fxe5 {[%emt 0:00:03]} Rd3 {[%emt 0:00:06]} 34. a4 {[%emt 0:01:08]} Rd4 {[%emt 0:00:49]} 35. b5 {[%emt 0:00:54]} Kf7 {[%emt 0:01:07]} 36. Ke3 {[%emt 0:02:28]} Rxa4 {[%emt 0:05:06]} 37. Rxd2 {[%emt 0:01:16]} Ke6 {[%emt 0:07:02]} 38. Rd4 {[%emt 0:01:04]} Ra5 {[%emt 0:00:30]} 39. Kf4 {[%emt 0:00:30]} Rxb5 {[%emt 0:00:30]} 40. Rd6+ {[%emt 0:00:30]} Ke7 {[%emt 0:00:30]} 41. Ra6 {[%emt 0:30:30]} Rb7 {[%emt 0:30:30]} 42. g4 {[%emt 0:00:30]} Rb4+ {[%emt 0:00:30]} 43. Kf5 {[%emt 0:00:30]} Rb7 {[%emt 0:00:30]} 44. h4 {[%emt 0:00:30]} Kf7 {[%emt 0:00:30]} 45. h5 {[%emt 0:00:30]} Ke7 {[%emt 0:01:33]} 46. g5 {[%emt 0:00:58]} Rc7 {[%emt 0:02:09]} 47. Re6+ {[%emt 0:02:28]} Kf8 {[%emt 0:02:32]} 48. Ra6 {[%emt 0:00:32]} 1/2-1/2

[Event "FIDE Open Sachove Univerzity QCC"]
[Site "Ceske Budejovice"]
[Date "2020.07.10"]
[Round "9.19"]
[White "Petkov, Andon"]
[Black "Rolinkova, Adela"]
[Result "1-0"]
[ECO "A01"]
[WhiteElo "1776"]
[BlackElo "1360"]
[Annotator "NA RC"]
[PlyCount "73"]
[EventDate "2020.07.01"]
[EventType "swiss"]
[EventCountry "CZE"]
[TimeControl "40/5400+30:1800+30"]

1. b3 {[%emt 0:00:00]} d5 {[%emt 0:00:05]} 2. Bb2 {[%emt 0:00:00]} Nc6 {[%emt 0:01:18]} 3. e3 {[%emt 0:00:00]} e5 {[%emt 0:00:56]} 4. Bb5 {[%emt 0:00:02]} Nge7 {[%emt 0:00:36]} 5. Bxe5 {[%emt 0:00:37]} a6 {[%emt 0:00:24]} 6. Bxc6+ {[%emt 0:00:13]} Nxc6 {[%emt 0:00:19]} 7. Bb2 {[%emt 0:00:10]} Be6 {[%emt 0:00:32]} 8. Ne2 {[%emt 0:04:08]} Qd7 {[%emt 0:01:00]} 9. d3 {[%emt 0:01:13]} Rd8 {[%emt 0:09:07]} 10. Nf4 {[%emt 0:05:12]} Bb4+ {[%emt 0:12:15]} 11. c3 {[%emt 0:04:27]} Bd6 {[%emt 0:00:54]} 12. Nxe6 {[%emt 0:00:13]} Qxe6 {[%emt 0:00:33]} 13. Qe2 {[%emt 0:01:46]} O-O {[%emt 0:01:42]} 14. Nd2 {[%emt 0:01:36]} Rfe8 {[%emt 0:02:37]} 15. Nf3 {[%emt 0:01:45]} Qg4 {[%emt 0:05:48]} 16. Rg1 {[%emt 0:08:45]} Ne5 {[%emt 0:03:06]} 17. Nxe5 {[%emt 0:09:49]} Qxe2+ {[%emt 0:00:16]} 18. Kxe2 {[%emt 0:00:06]} Bxe5 {[%emt 0:00:04]} 19. h3 {[%emt 0:00:19]} c5 {[%emt 0:00:30]} 20. d4 {[%emt 0:01:21]} cxd4 {[%emt 0:01:05]} 21. cxd4 {[%emt 0:00:14]} Bd6 {[%emt 0:01:02]} 22. Kd3 {[%emt 0:02:13]} f6 {[%emt 0:12:57]} 23. Rge1 {[%emt 0:04:45]} f5 {[%emt 0:06:19]} 24. f3 {[%emt 0:03:47]} Bg3 {[%emt 0:05:28]} 25. Re2 {[%emt 0:01:26]} Kf7 {[%emt 0:00:53]} 26. Rf1 {[%emt 0:00:39]} g5 {[%emt 0:01:19]} 27. e4 {[%emt 0:01:12]} dxe4+ {[%emt 0:00:54]} 28. fxe4 {[%emt 0:00:21]} f4 {[%emt 0:00:15]} 29. Rc2 {[%emt 0:00:36]} Rd7 {[%emt 0:01:35]} 30. Rfc1 {[%emt 0:00:24]} h5 {[%emt 0:00:42]} 31. Rc7 {[%emt 0:01:25]} Rxc7 {[%emt 0:04:51]} 32. Rxc7+ {[%emt 0:00:09]} Re7 {[%emt 0:00:16]} 33. Rxe7+ {[%emt 0:00:06]} Kxe7 {[%emt 0:00:08]} 34. d5 {[%emt 0:00:41]} g4 {[%emt 0:00:51]} 35. hxg4 {[%emt 0:00:14]} f3 {[%emt 0:03:43]} 36. gxf3 {[%emt 0:02:11]} h4 {[%emt 0:00:16]} 37. Ke2 {[%emt 0:01:57]} 1-0